fUSD/lending_fUSD_20250523
["ID","MTS","AMOUNT","RATE_DAILY","PERIOD"]
[362107076,1748002238555,-372.735,0.00027249,2]
[362107078,1748002238569,-628.00004064,0.00027249,2]
[362107099,1748002238850,336.2128,0.000172,2]
[362107124,1748002239159,336.2128,0.000172,2]
[362107161,1748002239497,336.21281,0.000172,2]
[362107180,1748002239652,-558.89350208,0.00027249,2]
[362107182,1748002239664,-3732.54391498,0.00027249,2]
[362107185,1748002239675,-683.38562655,0.00027249,2]
[362107187,1748002239686,-764.1832032,0.00027249,2]
[362107189,1748002239697,-139170.58563564,0.00027249,2]
[362107191,1748002239707,-1000.0,0.00027249,2]
[362107193,1748002239719,-915.9,0.0002726,2]
[362107195,1748002239728,-805.83,0.0002726,2]
[362107197,1748002239741,-542.56,0.0002726,2]
[362107199,1748002239754,-805.62,0.0002726,2]
[362107201,1748002239764,-416.39,0.0002726,2]
[362107203,1748002239773,-916.68,0.0002726,2]
[362107205,1748002239785,-1464.08055086,0.0002728,2]
[362107207,1748002239794,-2694.02398117,0.0002729,2]
[362107209,1748002239804,-5000.0,0.00027297,2]
[362107211,1748002239813,-221.60397265,0.00027297,2]
[362107213,1748002239822,-151.0,0.00027349,7]
[362107214,1748002239832,-1464.08055086,0.00027363,2]
[362107216,1748002239842,-320.79,0.00027367,2]
[362107218,1748002239852,-1464.08055086,0.00027368,2]
[362107220,1748002239862,-500.0,0.00027373,2]
[362107222,1748002239872,-500.0,0.00027373,2]
[362107224,1748002239881,-546.31260192,0.00027373,2]
[362107226,1748002239891,-501.31620392,0.00027373,2]
[362107228,1748002239901,-511.23095245,0.00027373,2]
[362107230,1748002239910,-500.0,0.00027373,2]
[362107232,1748002239920,-500.0,0.00027373,2]
[362107234,1748002239929,-502.67897746,0.00027373,2]
[362107236,1748002239939,-6723.71924588,0.00027377,2]
[362107238,1748002239951,-492.91612,0.00027377,2]
[362107241,1748002239970,-2172.6158999,0.00027377,2]
[362107244,1748002239995,-8179.71534452,0.00027377,2]
[362107246,1748002240005,-15198.93756114,0.00027377,2]
[362107249,1748002240017,-575.79183066,0.00027377,2]
[362107251,1748002240029,-30875.9599268,0.00027377,2]
[362107253,1748002240039,-291566.808241,0.00027387,2]
[362107255,1748002240048,-596.75201244,0.00027387,2]
[362107257,1748002240058,-10498.32057604,0.00027393,2]
[362107259,1748002240069,-7008.0,0.00027396,2]
[362107261,1748002240079,-377.3267898,0.00027397,4]
[362107263,1748002240088,-420.0,0.00027397,4]
[362107265,1748002240097,-420.0,0.00027397,4]
[362107267,1748002240109,-420.0,0.00027397,4]
[362107269,1748002240119,-420.0,0.00027397,4]
[362107270,1748002240128,-422.65766599,0.00027397,4]
[362107272,1748002240137,-422.94775366,0.00027397,4]
[362107274,1748002240147,-347.69544485,0.00027397,4]
[362107276,1748002240157,-420.0,0.00027397,4]
[362107278,1748002240166,-417.49346203,0.00027397,4]
[362107280,1748002240175,-420.0,0.00027397,4]
[362107282,1748002240185,-420.0,0.00027397,4]
[362107284,1748002240194,-453.16669388,0.00027397,4]
[362107286,1748002240203,-172.93315972,0.00027397,4]
[362107288,1748002240215,-420.0,0.00027397,4]
[362107290,1748002240225,-421.799949,0.00027397,4]
[362107292,1748002240235,-420.0,0.00027397,4]
[362107294,1748002240244,-420.0,0.00027397,4]
[362107296,1748002240254,-420.0,0.00027397,4]
[362107298,1748002240263,-420.0,0.00027397,4]
[362107300,1748002240273,-420.0,0.00027397,4]
[362107302,1748002240283,-420.0,0.00027397,4]
[362107304,1748002240293,-420.0,0.00027397,4]
[362107306,1748002240302,-420.0,0.00027397,4]
[362107308,1748002240311,-420.0,0.00027397,4]
[362107310,1748002240320,-420.0,0.00027397,4]
[362107313,1748002240330,-420.0,0.00027397,4]
[362107316,1748002240339,-420.0,0.00027397,4]
[362107318,1748002240349,-420.0,0.00027397,4]
[362107319,1748002240358,-426.02782506,0.00027397,4]
[362107321,1748002240368,-420.0,0.00027397,4]
[362107323,1748002240378,-420.0,0.00027397,4]
[362107325,1748002240388,-420.0,0.00027397,4]
[362107327,1748002240397,-420.0,0.00027397,4]
[362107329,1748002240407,-420.0,0.00027397,4]
[362107331,1748002240416,-420.0,0.00027397,4]
[362107333,1748002240425,-442.98428475,0.00027397,4]
[362107335,1748002240435,-420.0,0.00027397,4]
[362107337,1748002240444,-420.0,0.00027397,4]
[362107339,1748002240454,-500.0,0.00027397,2]
[362107341,1748002240467,-500.0,0.00027397,2]
[362107343,1748002240477,-424.410496,0.00027397,4]
[362107345,1748002240488,-500.0,0.00027397,2]
[362107347,1748002240498,-500.0,0.00027397,2]
[362107349,1748002240508,-420.0,0.00027397,4]
[362107351,1748002240518,-420.0,0.00027397,4]
[362107354,1748002240528,-420.0,0.00027397,4]
[362107356,1748002240537,-421.50755636,0.00027397,4]
[362107358,1748002240552,-420.0,0.00027397,4]
[362107360,1748002240561,-420.0,0.00027397,4]
[362107362,1748002240571,-420.0,0.00027397,4]
[362107364,1748002240580,-423.75557315,0.00027397,4]
[362107366,1748002240590,-420.0,0.00027397,4]
[362107368,1748002240599,-420.0,0.00027397,4]
[362107370,1748002240609,-423.1165766,0.00027397,4]
[362107372,1748002240618,-420.0,0.00027397,4]
[362107374,1748002240628,-420.0,0.00027397,4]
[362107376,1748002240638,-420.0,0.00027397,4]
[362107378,1748002240647,-420.0,0.00027397,4]
[362107380,1748002240657,-420.0,0.00027397,4]
[362107382,1748002240667,-420.0,0.00027397,4]
[362107384,1748002240676,-420.0,0.00027397,4]
[362107386,1748002240685,-420.0,0.00027397,4]
[362107388,1748002240695,-420.0,0.00027397,4]
[362107390,1748002240704,-420.0,0.00027397,4]
[362107392,1748002240717,-421.60439801,0.00027397,4]
[362107394,1748002240727,-420.0,0.00027397,4]
[362107396,1748002240738,-420.0,0.00027397,4]
[362107398,1748002240750,-420.0,0.00027397,4]
[362107400,1748002240760,-420.0,0.00027397,4]
[362107401,1748002240770,-420.0,0.00027397,4]
[362107403,1748002240780,-423.55072979,0.00027397,4]
[362107405,1748002240791,-420.0,0.00027397,4]
[362107407,1748002240801,-420.0,0.00027397,4]
[362107409,1748002240810,-423.23203544,0.00027397,4]
[362107411,1748002240820,-420.0,0.00027397,4]
[362107413,1748002240830,-420.0,0.00027397,4]
[362107415,1748002240840,-420.0,0.00027397,4]
[362107417,1748002240850,-420.0,0.00027397,4]
[362107419,1748002240859,-420.0,0.00027397,4]
[362107421,1748002240869,-420.0,0.00027397,4]
[362107423,1748002240880,-420.0,0.00027397,4]
[362107425,1748002240890,-420.0,0.00027397,4]
[362107427,1748002240900,-420.0,0.00027397,4]
[362107429,1748002240910,-422.79869499,0.00027397,4]
[362107431,1748002240921,-420.0,0.00027397,4]
[362107433,1748002240932,-422.07325224,0.00027397,4]
[362107436,1748002240941,-420.0,0.00027397,4]
[362107438,1748002240952,-420.0,0.00027397,4]
[362107439,1748002240963,-420.0,0.00027397,4]
[362107441,1748002240973,-420.0,0.00027397,4]
[362107444,1748002240984,-420.0,0.00027397,4]
[362107446,1748002240997,-420.0,0.00027397,4]
[362107447,1748002241007,-554.47372701,0.00027397,4]
[362107449,1748002241016,-422.61112558,0.00027397,4]
[362107452,1748002241026,-420.0,0.00027397,4]
[362107453,1748002241036,-423.25568506,0.00027397,4]
[362107456,1748002241046,-420.0,0.00027397,4]
[362107458,1748002241055,-421.26139681,0.00027397,4]
[362107460,1748002241065,-420.0,0.00027397,4]
[362107462,1748002241074,-420.0,0.00027397,4]
[362107464,1748002241084,-423.12033853,0.00027397,4]
[362107466,1748002241093,-422.19948767,0.00027397,4]
[362107468,1748002241103,-454.97,0.00027397,4]
[362107470,1748002241112,-420.0,0.00027397,4]
[362107472,1748002241121,-420.0,0.00027397,4]
[362107475,1748002241131,-502.09323404,0.00027397,4]
[362107477,1748002241141,-420.0,0.00027397,4]
[362107480,1748002241151,-421.18892154,0.00027397,4]
[362107482,1748002241161,-338.22256802,0.00027397,4]
[362107484,1748002241170,-420.0,0.00027397,4]
[362107486,1748002241179,-420.0,0.00027397,4]
[362107488,1748002241188,-420.0,0.00027397,4]
[362107490,1748002241198,-421.37340933,0.00027397,4]
[362107492,1748002241207,-420.0,0.00027397,4]
[362107494,1748002241220,-420.0,0.00027397,4]
[362107496,1748002241230,-420.0,0.00027397,4]
[362107498,1748002241240,-420.0,0.00027397,4]
[362107500,1748002241250,-420.0,0.00027397,4]
[362107502,1748002241259,-420.0,0.00027397,4]
[362107504,1748002241268,-420.0,0.00027397,4]
[362107506,1748002241278,-420.0,0.00027397,4]
[362107508,1748002241288,-420.0,0.00027397,4]
[362107510,1748002241297,-420.0,0.00027397,4]
[362107512,1748002241306,-420.0,0.00027397,4]
[362107514,1748002241316,-420.0,0.00027397,4]
[362107516,1748002241325,-420.0,0.00027397,4]
[362107518,1748002241334,-420.0,0.00027397,4]
[362107520,1748002241343,-420.0,0.00027397,4]
[362107522,1748002241352,-420.0,0.00027397,4]
[362107524,1748002241362,-437.43,0.00027397,4]
[362107526,1748002241372,-420.0,0.00027397,4]
[362107527,1748002241381,-420.0,0.00027397,4]
[362107529,1748002241391,-421.9400578,0.00027397,4]
[362107531,1748002241400,-422.68771493,0.00027397,4]
[362107534,1748002241410,-420.0,0.00027397,4]
[362107536,1748002241420,-424.6716046,0.00027397,4]
[362107538,1748002241430,-423.5310325,0.00027397,4]
[362107540,1748002241439,-420.0,0.00027397,4]
[362107541,1748002241448,-420.0,0.00027397,4]
[362107543,1748002241458,-420.0,0.00027397,4]
[362107544,1748002241469,-420.0,0.00027397,4]
[362107545,1748002241478,-461.98829718,0.00027397,4]
[362107546,1748002241487,-423.71199139,0.00027397,4]
[362107547,1748002241497,-420.0,0.00027397,4]
[362107548,1748002241506,-420.0,0.00027397,4]
[362107549,1748002241516,-420.0,0.00027397,4]
[362107550,1748002241525,-420.0,0.00027397,4]
[362107551,1748002241534,-420.0,0.00027397,4]
[362107552,1748002241543,-430.22,0.00027397,4]
[362107553,1748002241553,-397.21115413,0.00027397,4]
[362107554,1748002241562,-420.0,0.00027397,4]
[362107555,1748002241571,-420.0,0.00027397,4]
[362107557,1748002241580,-420.0,0.00027397,4]
[362107558,1748002241589,-420.0,0.00027397,4]
[362107560,1748002241598,-420.0,0.00027397,4]
[362107562,1748002241608,-420.0,0.00027397,4]
[362107564,1748002241617,-425.14546395,0.00027397,4]
[362107566,1748002241626,-420.0,0.00027397,4]
[362107568,1748002241636,-420.0,0.00027397,4]
[362107570,1748002241646,-420.0,0.00027397,4]
[362107572,1748002241655,-420.0,0.00027397,4]
[362107574,1748002241664,-420.0,0.00027397,4]
[362107576,1748002241674,-423.5556123,0.00027397,4]
[362107578,1748002241684,-420.0,0.00027397,4]
[362107580,1748002241693,-299.11797824,0.00027397,4]
[362107582,1748002241702,-422.98384741,0.00027397,4]
[362107584,1748002241714,-425.86411966,0.00027397,4]
[362107586,1748002241723,-420.0,0.00027397,4]
[362107588,1748002241733,-420.0,0.00027397,4]
[362107590,1748002241742,-420.0,0.00027397,4]
[362107592,1748002241754,-420.0,0.00027397,4]
[362107594,1748002241763,-420.0,0.00027397,4]
[362107596,1748002241773,-420.0,0.00027397,4]
[362107598,1748002241783,-420.0,0.00027397,4]
[362107600,1748002241792,-420.0,0.00027397,4]
[362107602,1748002241802,-420.0,0.00027397,4]
[362107604,1748002241811,-426.45506739,0.00027397,4]
[362107606,1748002241821,-420.0,0.00027397,4]
[362107608,1748002241831,-423.66540871,0.00027397,4]
[362107610,1748002241840,-420.0,0.00027397,4]
[362107612,1748002241850,-420.0,0.00027397,4]
[362107614,1748002241860,-420.0,0.00027397,4]
[362107616,1748002241878,-300.0,0.00027397,4]
[362107618,1748002241889,-420.0,0.00027397,2]
[362107620,1748002241899,-421.25,0.00027397,4]
[362107622,1748002241908,-420.0,0.00027397,4]
[362107624,1748002241918,-421.75,0.00027397,4]
[362107626,1748002241927,-420.0,0.00027397,4]
[362107628,1748002241936,-420.0,0.00027397,4]
[362107630,1748002241946,-420.0,0.00027397,4]
[362107632,1748002241956,-420.0,0.00027397,4]
[362107634,1748002241968,-420.0,0.00027397,4]
[362107636,1748002241977,-423.41287015,0.00027397,4]
[362107638,1748002241987,-420.0,0.00027397,4]
[362107639,1748002241996,-423.38481812,0.00027397,4]
[362107642,1748002242006,-420.0,0.00027397,4]
[362107643,1748002242015,-420.0,0.00027397,4]
[362107646,1748002242025,-423.60554785,0.00027397,4]
[362107648,1748002242034,-423.11131234,0.00027397,4]
[362107649,1748002242043,-420.0,0.00027397,4]
[362107651,1748002242052,-420.0,0.00027397,4]
[362107653,1748002242062,-420.0,0.00027397,4]
[362107655,1748002242071,-420.0,0.00027397,4]
[362107657,1748002242080,-420.0,0.00027397,4]
[362107659,1748002242089,-422.83591796,0.00027397,4]
[362107661,1748002242098,-420.0,0.00027397,4]
[362107663,1748002242107,-420.0,0.00027397,4]
[362107665,1748002242116,-428.43,0.00027397,4]
[362107667,1748002242126,-420.0,0.00027397,4]
[362107669,1748002242136,-420.0,0.00027397,4]
[362107671,1748002242145,-421.20554522,0.00027397,4]
[362107673,1748002242154,-420.0,0.00027397,4]
[362107675,1748002242163,-420.0,0.00027397,4]
[362107677,1748002242173,-420.0,0.00027397,4]
[362107679,1748002242182,-420.0,0.00027397,4]
[362107681,1748002242192,-420.0,0.00027397,4]
[362107683,1748002242203,-420.0,0.00027397,4]
[362107685,1748002242215,-420.0,0.00027397,4]
[362107687,1748002242225,-420.0,0.00027397,4]
[362107690,1748002242235,-420.0,0.00027397,4]
[362107692,1748002242244,-457.68,0.00027397,4]
[362107694,1748002242254,-420.0,0.00027397,4]
[362107696,1748002242263,-455.94476824,0.00027397,4]
[362107698,1748002242274,-420.0,0.00027397,4]
[362107701,1748002242283,-420.0,0.00027397,4]
[362107704,1748002242292,-204.98524336,0.00027397,4]
[362107706,1748002242302,-420.07079963,0.00027397,4]
[362107708,1748002242312,-500.0,0.00027397,4]
[362107710,1748002242322,-420.0,0.00027397,4]
[362107712,1748002242331,-424.74559991,0.00027397,4]
[362107714,1748002242341,-423.3431862,0.00027397,4]
[362107716,1748002242351,-420.0,0.00027397,4]
[362107718,1748002242360,-420.0,0.00027397,4]
[362107720,1748002242370,-420.0,0.00027397,4]
[362107722,1748002242381,-420.0,0.00027397,4]
[362107725,1748002242390,-403.12568521,0.00027397,4]
[362107727,1748002242399,-420.0,0.00027397,4]
[362107729,1748002242410,-420.0,0.00027397,4]
[362107732,1748002242420,-423.32022822,0.00027397,4]
[362107735,1748002242429,-420.0,0.00027397,4]
[362107737,1748002242440,-420.0,0.00027397,4]
[362107738,1748002242449,-500.0,0.00027397,4]
[362107740,1748002242459,-420.0,0.00027397,4]
[362107742,1748002242475,-420.0,0.00027397,4]
[362107745,1748002242486,-420.0,0.00027397,4]
[362107747,1748002242496,-420.0,0.00027397,4]
[362107749,1748002242505,-420.0,0.00027397,4]
[362107751,1748002242515,-420.0,0.00027397,4]
[362107753,1748002242525,-420.0,0.00027397,4]
[362107755,1748002242534,-419.58934994,0.00027397,4]
[362107757,1748002242544,-420.0,0.00027397,4]
[362107760,1748002242554,-420.0,0.00027397,4]
[362107762,1748002242564,-151.0,0.00027397,7]
[362107765,1748002242573,-420.0,0.00027397,4]
[362107769,1748002242583,-218.306864,0.00027397,7]
[362107771,1748002242593,-420.0,0.00027397,4]
[362107773,1748002242603,-420.0,0.00027397,4]
[362107775,1748002242613,-423.0876759,0.00027397,4]
[362107777,1748002242622,-420.0,0.00027397,4]
[362107779,1748002242632,-151.0,0.00027397,7]
[362107781,1748002242642,-420.0,0.00027397,4]
[362107783,1748002242651,-420.0,0.00027397,4]
[362107785,1748002242661,-152.577146,0.00027397,7]
[362107787,1748002242670,-420.0,0.00027397,4]
[362107789,1748002242680,-420.0,0.00027397,4]
[362107791,1748002242690,-420.0,0.00027397,4]
[362107793,1748002242699,-420.0,0.00027397,4]
[362107795,1748002242710,-420.0,0.00027397,4]
[362107797,1748002242723,-420.0,0.00027397,4]
[362107799,1748002242733,-424.4401209,0.00027397,4]
[362107801,1748002242747,-421.92060433,0.00027397,4]
[362107804,1748002242757,-422.00657862,0.00027397,4]
[362107807,1748002242767,-423.29880051,0.00027397,4]
[362107809,1748002242777,-420.0,0.00027397,4]
[362107811,1748002242788,-420.0,0.00027397,4]
[362107813,1748002242798,-424.38505988,0.00027397,4]
[362107815,1748002242808,-420.0,0.00027397,4]
[362107817,1748002242818,-464.72,0.00027397,4]
[362107837,1748002243033,-420.0,0.00027397,4]
[362107839,1748002243045,-420.0,0.00027397,4]
[362107841,1748002243055,-422.88174183,0.00027397,4]
[362107843,1748002243065,-420.0,0.00027397,4]
[362107845,1748002243075,-420.0,0.00027397,4]
[362107846,1748002243085,-420.0,0.00027397,4]
[362107848,1748002243094,-422.83401419,0.00027397,4]
[362107850,1748002243105,-551.98755939,0.00027397,4]
[362107851,1748002243115,-420.0,0.00027397,4]
[362107853,1748002243125,-420.0,0.00027397,4]
[362107855,1748002243135,-289.21462286,0.00027397,4]
[362107857,1748002243145,-420.0,0.00027397,4]
[362107859,1748002243155,-420.0,0.00027397,4]
[362107861,1748002243166,-420.0,0.00027397,4]
[362107863,1748002243175,-420.0,0.00027397,4]
[362107865,1748002243185,-420.0,0.00027397,4]
[362107867,1748002243195,-446.00854056,0.00027397,4]
[362107869,1748002243204,-423.31640025,0.00027397,4]
[362107871,1748002243215,-398.18827799,0.00027397,4]
[362107873,1748002243225,-459.77,0.00027397,4]
[362107875,1748002243235,-420.0,0.00027397,4]
[362107876,1748002243244,-496.03,0.00027397,4]
[362107878,1748002243254,-420.0,0.00027397,4]
[362107880,1748002243264,-420.0,0.00027397,4]
[362107882,1748002243274,-699.81,0.00027397,4]
[362107884,1748002243284,-420.0,0.00027397,4]
[362107886,1748002243293,-423.78459534,0.00027397,4]
[362107888,1748002243303,-420.0,0.00027397,4]
[362107890,1748002243312,-424.07238811,0.00027397,4]
[362107892,1748002243322,-420.0,0.00027397,4]
[362107894,1748002243331,-424.64961386,0.00027397,4]
[362107896,1748002243342,-420.0,0.00027397,4]
[362107898,1748002243351,-424.80110122,0.00027397,4]
[362107900,1748002243362,-420.0,0.00027397,4]
[362107902,1748002243372,-420.0,0.00027397,4]
[362107904,1748002243382,-425.71836071,0.00027397,4]
[362107906,1748002243392,-421.06530741,0.00027397,3]
[362107908,1748002243401,-420.0,0.00027397,4]
[362107910,1748002243411,-420.0,0.00027397,4]
[362107912,1748002243423,-420.0,0.00027397,4]
[362107914,1748002243432,-420.0,0.00027397,4]
[362107916,1748002243442,-208.31831779,0.00027397,4]
[362107918,1748002243452,-151.0,0.00027397,7]
[362107920,1748002243464,-420.0,0.00027397,4]
[362107922,1748002243474,-420.0,0.00027397,4]
[362107924,1748002243484,-934.23,0.00027397,4]
[362107925,1748002243493,-420.0,0.00027397,4]
[362107927,1748002243503,-420.0,0.00027397,4]
[362107929,1748002243513,-507.34428584,0.00027397,4]
[362107931,1748002243522,-151.333094,0.00027397,7]
[362107933,1748002243532,-441.28,0.00027397,4]
[362107935,1748002243542,-424.34762147,0.00027397,4]
[362107937,1748002243552,-424.99449836,0.00027397,4]
[362107939,1748002243562,-452.17,0.00027397,4]
[362107941,1748002243572,-151.0,0.00027397,7]
[362107943,1748002243581,-420.0,0.00027397,4]
[362107945,1748002243591,-420.0,0.00027397,4]
[362107947,1748002243600,-422.6739384,0.00027397,4]
[362107949,1748002243609,-420.0,0.00027397,4]
[362107951,1748002243619,-420.0,0.00027397,4]
[362107953,1748002243629,-420.0,0.00027397,4]
[362107955,1748002243640,-420.0,0.00027397,4]
[362107956,1748002243650,-429.84090244,0.00027397,4]
[362107958,1748002243659,-420.0,0.00027397,4]
[362107960,1748002243669,-420.0,0.00027397,4]
[362107962,1748002243678,-420.0,0.00027397,4]
[362107964,1748002243688,-420.0,0.00027397,4]
[362107966,1748002243697,-443.22,0.00027397,4]
[362107968,1748002243707,-420.0,0.00027397,4]
[362107970,1748002243717,-313.85923558,0.00027397,4]
[362107972,1748002243727,-420.0,0.00027397,4]
[362107974,1748002243738,-420.0,0.00027397,4]
[362107976,1748002243750,-420.0,0.00027397,4]
[362107978,1748002243760,-420.0,0.00027397,4]
[362107980,1748002243770,-424.62125682,0.00027397,4]
[362107981,1748002243779,-420.0,0.00027397,4]
[362107983,1748002243790,-420.0,0.00027397,4]
[362107986,1748002243800,-429.95847918,0.00027397,4]
[362107987,1748002243810,-420.0,0.00027397,4]
[362107989,1748002243820,-420.0,0.00027397,4]
[362107991,1748002243831,-420.0,0.00027397,4]
[362107993,1748002243842,-420.0,0.00027397,4]
[362107995,1748002243852,-420.0,0.00027397,4]
[362107997,1748002243861,-420.0,0.00027397,4]
[362107999,1748002243872,-420.0,0.00027397,4]
[362108001,1748002243882,-420.0,0.00027397,4]
[362108003,1748002243892,-420.0,0.00027397,4]
[362108005,1748002243902,-420.0,0.00027397,4]
[362108007,1748002243912,-429.60985868,0.00027397,4]
[362108009,1748002243921,-420.0,0.00027397,4]
[362108012,1748002243931,-420.0,0.00027397,4]
[362108015,1748002243941,-423.32453503,0.00027397,4]
[362108017,1748002243950,-421.48885314,0.00027397,4]
[362108020,1748002243960,-381.14364827,0.00027397,4]
[362108023,1748002243973,-420.0,0.00027397,4]
[362108025,1748002243983,-420.0,0.00027397,4]
[362108027,1748002243993,-420.0,0.00027397,4]
[362108028,1748002244002,-420.0,0.00027397,4]
[362108030,1748002244011,-420.0,0.00027397,4]
[362108032,1748002244022,-420.0,0.00027397,4]
[362108034,1748002244033,-420.0,0.00027397,4]
[362108035,1748002244042,-426.19989354,0.00027397,4]
[362108037,1748002244052,-420.0,0.00027397,4]
[362108038,1748002244061,-420.0,0.00027397,4]
[362108040,1748002244071,-420.0,0.00027397,4]
[362108041,1748002244081,-420.0,0.00027397,4]
[362108042,1748002244090,-420.0,0.00027397,4]
[362108043,1748002244099,-420.0,0.00027397,4]
[362108044,1748002244109,-420.0,0.00027397,4]
[362108045,1748002244118,-420.0,0.00027397,4]
[362108047,1748002244128,-420.0,0.00027397,4]
[362108049,1748002244138,-420.0,0.00027397,4]
[362108051,1748002244147,-420.0,0.00027397,4]
[362108053,1748002244156,-420.0,0.00027397,4]
[362108054,1748002244166,-420.0,0.00027397,4]
[362108057,1748002244176,-420.0,0.00027397,4]
[362108059,1748002244186,-420.0,0.00027397,4]
[362108061,1748002244195,-420.0,0.00027397,4]
[362108063,1748002244205,-420.0,0.00027397,4]
[362108065,1748002244217,-300.0,0.00027397,4]
[362108067,1748002244227,-420.0,0.00027397,4]
[362108069,1748002244236,-420.0,0.00027397,4]
[362108071,1748002244245,-420.0,0.00027397,4]
[362108073,1748002244255,-420.0,0.00027397,4]
[362108075,1748002244265,-420.0,0.00027397,4]
[362108077,1748002244275,-420.0,0.00027397,4]
[362108079,1748002244284,-420.0,0.00027397,4]
[362108080,1748002244294,-335.82207434,0.00027397,4]
[362108082,1748002244303,-420.0,0.00027397,4]
[362108084,1748002244313,-420.0,0.00027397,4]
[362108086,1748002244323,-420.0,0.00027397,4]
[362108088,1748002244333,-420.0,0.00027397,4]
[362108090,1748002244343,-420.0,0.00027397,4]
[362108092,1748002244352,-420.0,0.00027397,4]
[362108094,1748002244362,-420.0,0.00027397,4]
[362108096,1748002244371,-420.0,0.00027397,4]
[362108098,1748002244381,-420.0,0.00027397,4]
[362108100,1748002244391,-420.0,0.00027397,4]
[362108102,1748002244400,-250.0,0.00027397,4]
[362108104,1748002244410,-420.0,0.00027397,4]
[362108106,1748002244420,-420.0,0.00027397,4]
[362108108,1748002244430,-425.77801532,0.00027397,4]
[362108110,1748002244439,-520.70855545,0.00027397,4]
[362108112,1748002244449,-420.0,0.00027397,4]
[362108114,1748002244458,-420.0,0.00027397,4]
[362108116,1748002244469,-420.0,0.00027397,4]
[362108118,1748002244479,-420.0,0.00027397,4]
[362108120,1748002244489,-420.0,0.00027397,4]
[362108122,1748002244498,-420.0,0.00027397,4]
[362108124,1748002244508,-420.0,0.00027397,4]
[362108126,1748002244517,-422.58043748,0.00027397,4]
[362108128,1748002244526,-420.0,0.00027397,4]
[362108130,1748002244536,-420.0,0.00027397,4]
[362108132,1748002244545,-420.0,0.00027397,4]
[362108134,1748002244555,-420.0,0.00027397,4]
[362108136,1748002244564,-420.0,0.00027397,4]
[362108138,1748002244573,-420.0,0.00027397,4]
[362108140,1748002244582,-420.0,0.00027397,4]
[362108142,1748002244592,-420.0,0.00027397,4]
[362108144,1748002244601,-420.0,0.00027397,4]
[362108146,1748002244610,-420.0,0.00027397,4]
[362108148,1748002244620,-420.0,0.00027397,4]
[362108149,1748002244633,-420.0,0.00027397,4]
[362108151,1748002244644,-420.0,0.00027397,4]
[362108153,1748002244662,-420.0,0.00027397,4]
[362108155,1748002244683,-423.24114889,0.00027397,4]
[362108157,1748002244695,-420.0,0.00027397,4]
[362108159,1748002244705,-420.0,0.00027397,4]
[362108161,1748002244716,-420.0,0.00027397,4]
[362108163,1748002244726,-420.0,0.00027397,4]
[362108165,1748002244735,-420.0,0.00027397,4]
[362108167,1748002244749,-420.0,0.00027397,4]
[362108169,1748002244759,-420.0,0.00027397,4]
[362108171,1748002244771,-420.0,0.00027397,4]
[362108173,1748002244782,-420.0,0.00027397,4]
[362108175,1748002244791,-420.0,0.00027397,4]
[362108177,1748002244802,-346.88461116,0.00027397,4]